[Event "*** Titled Tuesday Blitz"]
[Site "Chess.com"]
[Date "2020.04.28"]
[Round "5"]
[White "top_bu_tz"]
[Black "Blagorod"]
[Result "0-1"]
[WhiteElo "2261"]
[BlackElo "2150"]
[TimeControl "180+1"]
[EndTime "10:56:19 PDT"]
[Termination "Blagorod won on time"]

1. e4 {[%clk 0:03:00.9]} 1... e5 {[%clk 0:02:59.2]} 2. Nf3 {[%clk 0:02:58.4]}
2... Nf6 {[%clk 0:02:59.3]} 3. Nxe5 {[%clk 0:02:56.5]} 3... d6 {[%clk
0:02:58.6]} 4. Nf3 {[%clk 0:02:56.6]} 4... Nxe4 {[%clk 0:02:59.2]} 5. Nc3 {[%clk
0:02:44.8]} 5... Nxc3 {[%clk 0:02:59.2]} 6. dxc3 {[%clk 0:02:45.7]} 6... Be7
{[%clk 0:02:59.5]} 7. Bc4 {[%clk 0:02:44.7]} 7... Be6 {[%clk 0:02:45]} 8. Bxe6
{[%clk 0:02:06.7]} 8... fxe6 {[%clk 0:02:44.9]} 9. Nd4 {[%clk 0:02:05.3]} 9...
Qd7 {[%clk 0:02:11]} 10. Qg4 {[%clk 0:02:00.5]} 10... Bf6 {[%clk 0:01:39.6]} 11.
Qxe6+ {[%clk 0:01:53.7]} 11... Qxe6+ {[%clk 0:01:39.7]} 12. Nxe6 {[%clk
0:01:54.6]} 12... Kd7 {[%clk 0:01:39.6]} 13. Nf4 {[%clk 0:01:50.7]} 13... Re8+
{[%clk 0:01:34.1]} 14. Ne2 {[%clk 0:01:45.8]} 14... Nc6 {[%clk 0:01:26.8]} 15.
Be3 {[%clk 0:01:45.6]} 15... Ne5 {[%clk 0:01:21.4]} 16. f3 {[%clk 0:00:51.3]}
16... Nc4 {[%clk 0:01:15.1]} 17. Bc1 {[%clk 0:00:49.1]} 17... Re7 {[%clk
0:01:05.8]} 18. Kf2 {[%clk 0:00:47.8]} 18... Rae8 {[%clk 0:01:02.4]} 19. Re1
{[%clk 0:00:40.3]} 19... d5 {[%clk 0:00:40.6]} 20. b3 {[%clk 0:00:39.9]} 20...
Bxc3 {[%clk 0:00:34.5]} 21. Nxc3 {[%clk 0:00:36.8]} 21... Rxe1 {[%clk
0:00:32.5]} 22. bxc4 {[%clk 0:00:37.3]} 22... dxc4 {[%clk 0:00:30.3]} 23. Bb2
{[%clk 0:00:36.7]} 23... Rxa1 {[%clk 0:00:26]} 24. Bxa1 {[%clk 0:00:37.6]} 24...
c6 {[%clk 0:00:25.7]} 25. Ne4 {[%clk 0:00:37]} 25... Rb8 {[%clk 0:00:20.7]} 26.
Bxg7 {[%clk 0:00:35.3]} 26... b5 {[%clk 0:00:20.5]} 27. Be5 {[%clk 0:00:34]}
27... Ra8 {[%clk 0:00:16.7]} 28. Nc5+ {[%clk 0:00:31.8]} 28... Ke7 {[%clk
0:00:15.2]} 29. Ke3 {[%clk 0:00:31.5]} 29... a5 {[%clk 0:00:15.2]} 30. g4 {[%clk
0:00:21.2]} 30... a4 {[%clk 0:00:14.1]} 31. a3 {[%clk 0:00:20.3]} 31... b4
{[%clk 0:00:13.6]} 32. axb4 {[%clk 0:00:16.1]} 32... a3 {[%clk 0:00:13.9]} 33.
Nb7 {[%clk 0:00:16.5]} 33... Ra4 {[%clk 0:00:10.5]} 34. Nc5 {[%clk 0:00:13.8]}
34... Rxb4 {[%clk 0:00:09.8]} 35. Bc3 {[%clk 0:00:11]} 35... Rb5 {[%clk
0:00:09.5]} 36. Kd4 {[%clk 0:00:10.8]} 36... a2 {[%clk 0:00:08.8]} 37. Kxc4
{[%clk 0:00:11]} 37... Rb1 {[%clk 0:00:08.6]} 38. Nb3 {[%clk 0:00:11.1]} 38...
Rh1 {[%clk 0:00:07]} 39. f4 {[%clk 0:00:08]} 39... Rxh2 {[%clk 0:00:07]} 40. Kd3
{[%clk 0:00:04.4]} 40... Rg2 {[%clk 0:00:06.4]} 41. g5 {[%clk 0:00:04.2]} 41...
Rg4 {[%clk 0:00:06.1]} 42. Bf6+ {[%clk 0:00:04.3]} 42... Ke6 {[%clk 0:00:05.4]}
43. Be5 {[%clk 0:00:04.6]} 43... Kf5 {[%clk 0:00:04.3]} 44. Nd4+ {[%clk
0:00:04.1]} 44... Kg6 {[%clk 0:00:02.9]} 45. Nxc6 {[%clk 0:00:04.2]} 45... Rg3+
{[%clk 0:00:01.1]} 46. Kd2 {[%clk 0:00:02.9]} 46... Rg1 {[%clk 0:00:01.7]} 0-1

[Event "*** Titled Tuesday Blitz"]
[Site "Chess.com"]
[Date "2020.04.28"]
[Round "5"]
[White "profofchess"]
[Black "GoValya"]
[Result "1-0"]
[WhiteElo "2396"]
[BlackElo "2155"]
[TimeControl "180+1"]
[EndTime "10:56:20 PDT"]
[Termination "profofchess won by resignation"]

1. e4 {[%clk 0:03:00.9]} 1... e6 {[%clk 0:02:58]} 2. d4 {[%clk 0:02:59.7]} 2...
d5 {[%clk 0:02:57.9]} 3. Nc3 {[%clk 0:02:59.6]} 3... Nf6 {[%clk 0:02:54.6]} 4.
Bg5 {[%clk 0:02:57.8]} 4... Be7 {[%clk 0:02:53.6]} 5. e5 {[%clk 0:02:57.7]} 5...
Nfd7 {[%clk 0:02:53.1]} 6. h4 {[%clk 0:02:57.7]} 6... c5 {[%clk 0:02:44.9]} 7.
Bxe7 {[%clk 0:02:55.8]} 7... Qxe7 {[%clk 0:02:44.3]} 8. Nb5 {[%clk 0:02:55.9]}
8... O-O {[%clk 0:02:35.3]} 9. Nc7 {[%clk 0:02:52.8]} 9... cxd4 {[%clk
0:02:32.1]} 10. Nxa8 {[%clk 0:02:52.2]} 10... Nxe5 {[%clk 0:02:29.1]} 11. Qxd4
{[%clk 0:02:24.6]} 11... Nbc6 {[%clk 0:02:27.5]} 12. Qd2 {[%clk 0:02:23.7]}
12... Qd6 {[%clk 0:02:21.8]} 13. O-O-O {[%clk 0:02:15]} 13... Bd7 {[%clk
0:02:19.4]} 14. Be2 {[%clk 0:02:04.9]} 14... Rxa8 {[%clk 0:02:17.1]} 15. h5
{[%clk 0:02:03.1]} 15... h6 {[%clk 0:02:09.6]} 16. f4 {[%clk 0:02:02.4]} 16...
Nb4 {[%clk 0:02:00.1]} 17. fxe5 {[%clk 0:01:58.1]} 17... Qb6 {[%clk 0:01:49.5]}
18. a3 {[%clk 0:01:51.5]} 18... Na6 {[%clk 0:01:35.2]} 19. Nf3 {[%clk
0:01:48.1]} 19... Rc8 {[%clk 0:01:34.1]} 20. Nd4 {[%clk 0:01:45]} 20... Nc5
{[%clk 0:01:31.9]} 21. Qb4 {[%clk 0:01:33.5]} 21... Qd8 {[%clk 0:01:26.5]} 22.
Kb1 {[%clk 0:01:22.7]} 22... Qg5 {[%clk 0:01:21.4]} 23. Nf3 {[%clk 0:01:18.8]}
23... Qe3 {[%clk 0:01:17]} 24. Qd2 {[%clk 0:01:13.7]} 24... Qe4 {[%clk
0:01:03.5]} 25. Rh4 {[%clk 0:01:10.5]} 25... Qf5 {[%clk 0:00:56.7]} 26. Qf4
{[%clk 0:01:00.9]} 26... Ne4 {[%clk 0:00:39.3]} 27. Qxf5 {[%clk 0:00:56.7]}
27... exf5 {[%clk 0:00:39.4]} 28. Rxd5 {[%clk 0:00:52.5]} 28... Be6 {[%clk
0:00:38.3]} 29. Rd4 {[%clk 0:00:51.3]} 29... Ng5 {[%clk 0:00:28.9]} 30. Nxg5
{[%clk 0:00:48.5]} 30... hxg5 {[%clk 0:00:28.5]} 31. Rh1 {[%clk 0:00:48.3]}
31... f4 {[%clk 0:00:25.9]} 32. Bd3 {[%clk 0:00:41.4]} 32... g4 {[%clk
0:00:20.3]} 33. Rxf4 {[%clk 0:00:38.9]} 33... Rc5 {[%clk 0:00:20.3]} 34. h6
{[%clk 0:00:37]} 34... gxh6 {[%clk 0:00:19.3]} 35. Rxh6 {[%clk 0:00:33.9]} 35...
Rxe5 {[%clk 0:00:19.2]} 36. b3 {[%clk 0:00:32.8]} 36... Re1+ {[%clk 0:00:18.7]}
37. Kb2 {[%clk 0:00:32.7]} 37... Rg1 {[%clk 0:00:19.6]} 38. Be4 {[%clk
0:00:30.9]} 38... Kg7 {[%clk 0:00:18.6]} 39. Rh4 {[%clk 0:00:28.1]} 39... Kf8
{[%clk 0:00:17.4]} 40. Bxb7 {[%clk 0:00:25.6]} 40... Ke7 {[%clk 0:00:17.1]} 41.
Be4 {[%clk 0:00:20.2]} 41... Kd6 {[%clk 0:00:16.9]} 42. Rh5 {[%clk 0:00:20.1]}
42... Re1 {[%clk 0:00:15.2]} 43. Bb7 {[%clk 0:00:17.7]} 43... f5 {[%clk
0:00:14.3]} 44. Rfxf5 {[%clk 0:00:16.5]} 44... Bxf5 {[%clk 0:00:13.8]} 45. Rxf5
{[%clk 0:00:17.4]} 45... g3 {[%clk 0:00:13.5]} 46. Rg5 {[%clk 0:00:17.1]} 46...
Re3 {[%clk 0:00:13]} 47. Bf3 {[%clk 0:00:16.3]} 47... Ke6 {[%clk 0:00:10.6]} 48.
Rxg3 {[%clk 0:00:16]} 48... Ke5 {[%clk 0:00:10.9]} 49. Rg4 {[%clk 0:00:16.2]}
49... Kf5 {[%clk 0:00:10.2]} 50. Re4 {[%clk 0:00:15.4]} 50... Rxe4 {[%clk
0:00:09.6]} 51. Bxe4+ {[%clk 0:00:16.3]} 51... Kxe4 {[%clk 0:00:10.5]} 52. c4
{[%clk 0:00:16.1]} 52... Kd4 {[%clk 0:00:10.4]} 53. g4 {[%clk 0:00:15.8]} 53...
Ke4 {[%clk 0:00:10]} 54. c5 {[%clk 0:00:16]} 54... Kd5 {[%clk 0:00:09.6]} 55. g5
{[%clk 0:00:15.6]} 55... Kxc5 {[%clk 0:00:09.6]} 56. g6 {[%clk 0:00:15.9]} 56...
Kd5 {[%clk 0:00:10.5]} 57. g7 {[%clk 0:00:16.3]} 1-0

[Event "*** Titled Tuesday Blitz"]
[Site "Chess.com"]
[Date "2020.04.28"]
[Round "5"]
[White "AquivaRubinstein"]
[Black "Jungle_Jaguar"]
[Result "0-1"]
[WhiteElo "2416"]
[BlackElo "2622"]
[TimeControl "180+1"]
[EndTime "10:56:21 PDT"]
[Termination "Jungle_Jaguar won by resignation"]

1. d4 {[%clk 0:02:58.7]} 1... Nf6 {[%clk 0:02:55.2]} 2. c4 {[%clk 0:02:58.6]}
2... e6 {[%clk 0:02:51.4]} 3. Nf3 {[%clk 0:02:57.7]} 3... d5 {[%clk 0:02:51.7]}
4. Nc3 {[%clk 0:02:57.3]} 4... Be7 {[%clk 0:02:52.4]} 5. Bf4 {[%clk 0:02:52.7]}
5... O-O {[%clk 0:02:51.6]} 6. e3 {[%clk 0:02:53]} 6... Nbd7 {[%clk 0:02:52]} 7.
c5 {[%clk 0:02:52.2]} 7... Nh5 {[%clk 0:02:48.4]} 8. Bd3 {[%clk 0:02:44.6]} 8...
b6 {[%clk 0:02:44.1]} 9. b4 {[%clk 0:02:43.1]} 9... a5 {[%clk 0:02:37.9]} 10. c6
{[%clk 0:02:37.3]} 10... Bxb4 {[%clk 0:02:36.1]} 11. Qc2 {[%clk 0:02:31.6]}
11... Ndf6 {[%clk 0:02:31.9]} 12. O-O {[%clk 0:02:30.8]} 12... Nxf4 {[%clk
0:02:29.9]} 13. exf4 {[%clk 0:02:30.4]} 13... Ba6 {[%clk 0:02:27.5]} 14. Ne5
{[%clk 0:02:17]} 14... Bxd3 {[%clk 0:02:22.5]} 15. Qxd3 {[%clk 0:02:14.9]} 15...
Bxc3 {[%clk 0:02:11.6]} 16. Qxc3 {[%clk 0:02:14.7]} 16... Ne4 {[%clk 0:02:11.4]}
17. Qd3 {[%clk 0:02:11.3]} 17... Nd6 {[%clk 0:02:06.9]} 18. Rfe1 {[%clk
0:02:03.4]} 18... a4 {[%clk 0:02:05.2]} 19. Re3 {[%clk 0:02:00]} 19... g6 {[%clk
0:02:00.9]} 20. g4 {[%clk 0:01:52.3]} 20... Qf6 {[%clk 0:01:47.8]} 21. Rf3
{[%clk 0:01:48.2]} 21... Rfd8 {[%clk 0:01:46.7]} 22. Re1 {[%clk 0:01:46.4]}
22... b5 {[%clk 0:01:37]} 23. Nd7 {[%clk 0:01:34.7]} 23... Rxd7 {[%clk
0:01:29.7]} 24. cxd7 {[%clk 0:01:34.3]} 24... Rd8 {[%clk 0:01:30.3]} 25. f5
{[%clk 0:01:28]} 25... exf5 {[%clk 0:01:00.9]} 26. gxf5 {[%clk 0:01:24.3]} 26...
gxf5 {[%clk 0:00:56]} 27. Re5 {[%clk 0:00:54.4]} 27... Rxd7 {[%clk 0:00:50.1]}
28. Rxd5 {[%clk 0:00:52.6]} 28... Re7 {[%clk 0:00:43.9]} 29. Rxd6 {[%clk
0:00:40.1]} 29... Qxd6 {[%clk 0:00:40]} 30. Qxb5 {[%clk 0:00:40.3]} 30... f4
{[%clk 0:00:36.7]} 31. Qg5+ {[%clk 0:00:32.4]} 31... Qg6 {[%clk 0:00:25.9]} 32.
Qxg6+ {[%clk 0:00:32.2]} 32... hxg6 {[%clk 0:00:26.2]} 33. Rxf4 {[%clk
0:00:26.7]} 33... Re2 {[%clk 0:00:25.8]} 34. a3 {[%clk 0:00:24.8]} 34... Ra2
{[%clk 0:00:24]} 35. Rf3 {[%clk 0:00:24.1]} 35... Rb2 {[%clk 0:00:20.4]} 36. Rc3
{[%clk 0:00:23.2]} 36... Rb3 {[%clk 0:00:20.6]} 37. Rxc7 {[%clk 0:00:23.3]}
37... Rxa3 {[%clk 0:00:21.1]} 38. Ra7 {[%clk 0:00:23.6]} 38... Kg7 {[%clk
0:00:21.1]} 39. Kg2 {[%clk 0:00:23.6]} 39... Kf6 {[%clk 0:00:21.6]} 40. f3
{[%clk 0:00:23.8]} 40... Ke6 {[%clk 0:00:21.9]} 41. Kg3 {[%clk 0:00:24.1]} 41...
Ra1 {[%clk 0:00:21.1]} 42. Kf4 {[%clk 0:00:22.2]} 42... a3 {[%clk 0:00:20.2]}
43. h4 {[%clk 0:00:21.5]} 43... a2 {[%clk 0:00:19.7]} 44. Ra5 {[%clk 0:00:17.7]}
44... Kd6 {[%clk 0:00:19.8]} 45. Ra7 {[%clk 0:00:17.2]} 45... Kd5 {[%clk
0:00:19.2]} 46. Ra4 {[%clk 0:00:16.4]} 46... f6 {[%clk 0:00:18.9]} 47. h5 {[%clk
0:00:15.6]} 47... gxh5 {[%clk 0:00:18.2]} 48. Kf5 {[%clk 0:00:16.1]} 48... h4
{[%clk 0:00:18.2]} 49. Kxf6 {[%clk 0:00:16.5]} 49... h3 {[%clk 0:00:18.6]} 50.
Ra5+ {[%clk 0:00:15.6]} 50... Kxd4 {[%clk 0:00:18.3]} 51. Ra4+ {[%clk
0:00:15.6]} 51... Ke3 {[%clk 0:00:17.3]} 52. Ra3+ {[%clk 0:00:10.7]} 52... Kf4
{[%clk 0:00:17.6]} 53. Kg6 {[%clk 0:00:09]} 53... h2 {[%clk 0:00:17.1]} 54. Kf6
{[%clk 0:00:08.6]} 54... h1=Q {[%clk 0:00:17.1]} 0-1

[Event "*** Titled Tuesday Blitz"]
[Site "Chess.com"]
[Date "2020.04.28"]
[Round "5"]
[White "DanielTitichoca"]
[Black "cassoulet"]
[Result "1-0"]
[WhiteElo "2330"]
[BlackElo "2582"]
[TimeControl "180+1"]
[EndTime "10:56:21 PDT"]
[Termination "DanielTitichoca won by checkmate"]

1. d4 {[%clk 0:03:00.6]} 1... Nf6 {[%clk 0:02:59.3]} 2. Nf3 {[%clk 0:03:00.3]}
2... g6 {[%clk 0:02:58.5]} 3. Bf4 {[%clk 0:03:00.5]} 3... Bg7 {[%clk 0:02:58.6]}
4. e3 {[%clk 0:03:01.4]} 4... O-O {[%clk 0:02:58]} 5. h3 {[%clk 0:03:02.3]} 5...
d5 {[%clk 0:02:58]} 6. Be2 {[%clk 0:02:58.4]} 6... c5 {[%clk 0:02:54.6]} 7. O-O
{[%clk 0:02:56.4]} 7... Nc6 {[%clk 0:02:54.6]} 8. Nbd2 {[%clk 0:02:54.5]} 8...
Nd7 {[%clk 0:02:52.3]} 9. c3 {[%clk 0:02:49.4]} 9... e5 {[%clk 0:02:52.1]} 10.
dxe5 {[%clk 0:02:48.6]} 10... Ndxe5 {[%clk 0:02:53]} 11. Nxe5 {[%clk 0:02:48.5]}
11... Nxe5 {[%clk 0:02:53.6]} 12. Nf3 {[%clk 0:02:48.7]} 12... Nc6 {[%clk
0:02:53.1]} 13. Bb5 {[%clk 0:02:43.1]} 13... Qb6 {[%clk 0:02:47.6]} 14. Qa4
{[%clk 0:02:14.6]} 14... Be6 {[%clk 0:02:28]} 15. Rab1 {[%clk 0:01:48.7]} 15...
Rac8 {[%clk 0:02:12.5]} 16. Rfd1 {[%clk 0:01:35.2]} 16... a6 {[%clk 0:02:10.6]}
17. Bd3 {[%clk 0:01:27.7]} 17... h6 {[%clk 0:02:06.4]} 18. c4 {[%clk 0:01:02.5]}
18... Nb4 {[%clk 0:01:54]} 19. cxd5 {[%clk 0:00:59.7]} 19... Bxd5 {[%clk
0:01:41.4]} 20. Be2 {[%clk 0:00:59.8]} 20... Be4 {[%clk 0:01:27.7]} 21. Rd6
{[%clk 0:00:59.8]} 21... Rc6 {[%clk 0:01:22.1]} 22. Rbd1 {[%clk 0:00:57.8]}
22... Bc2 {[%clk 0:01:17.4]} 23. Qa3 {[%clk 0:00:49.1]} 23... Bxd1 {[%clk
0:01:14.6]} 24. Rxd1 {[%clk 0:00:50]} 24... Rd8 {[%clk 0:01:10.6]} 25. Rc1
{[%clk 0:00:47.2]} 25... Nd5 {[%clk 0:01:06]} 26. Be5 {[%clk 0:00:44.5]} 26...
Qb4 {[%clk 0:00:57.4]} 27. Qd3 {[%clk 0:00:41.8]} 27... Rcc8 {[%clk 0:00:46.7]}
28. Rc4 {[%clk 0:00:36.5]} 28... Qb5 {[%clk 0:00:40.3]} 29. Qe4 {[%clk
0:00:34.4]} 29... Nf6 {[%clk 0:00:34.4]} 30. Qh4 {[%clk 0:00:24.1]} 30... Qb6
{[%clk 0:00:27.5]} 31. Rf4 {[%clk 0:00:20.5]} 31... g5 {[%clk 0:00:27.1]} 32.
Nxg5 {[%clk 0:00:19.7]} 32... hxg5 {[%clk 0:00:28]} 33. Qxg5 {[%clk 0:00:20.5]}
33... Ne8 {[%clk 0:00:26.1]} 34. Bc4 {[%clk 0:00:19.4]} 34... Rd7 {[%clk
0:00:22.8]} 35. Rg4 {[%clk 0:00:17.3]} 35... Kf8 {[%clk 0:00:09.9]} 36. Bxg7+
{[%clk 0:00:17.7]} 36... Nxg7 {[%clk 0:00:09.9]} 37. Qxg7+ {[%clk 0:00:18.4]}
37... Ke7 {[%clk 0:00:10.2]} 38. Re4+ {[%clk 0:00:18.5]} 38... Kd8 {[%clk
0:00:07.8]} 39. Qe5 {[%clk 0:00:14.9]} 39... Qd6 {[%clk 0:00:06.9]} 40. Qg5+
{[%clk 0:00:13]} 40... Kc7 {[%clk 0:00:07]} 41. Bb3 {[%clk 0:00:11.3]} 41... Kb8
{[%clk 0:00:07.1]} 42. Rf4 {[%clk 0:00:10.7]} 42... Rcc7 {[%clk 0:00:06.5]} 43.
Rf6 {[%clk 0:00:09.9]} 43... Qd2 {[%clk 0:00:04.8]} 44. Qf4 {[%clk 0:00:09.7]}
44... Ka7 {[%clk 0:00:04.4]} 45. Bxf7 {[%clk 0:00:08.2]} 45... Qe1+ {[%clk
0:00:04.4]} 46. Kh2 {[%clk 0:00:07.7]} 46... Qb4 {[%clk 0:00:05.3]} 47. Bc4
{[%clk 0:00:06.2]} 47... Rd2 {[%clk 0:00:05]} 48. b3 {[%clk 0:00:04.4]} 48...
Rcd7 {[%clk 0:00:04.5]} 49. Qe5 {[%clk 0:00:04.3]} 49... Rxa2 {[%clk 0:00:04.1]}
50. Rf8 {[%clk 0:00:04.1]} 50... b6 {[%clk 0:00:03.4]} 51. Qb8# {[%clk
0:00:04.4]} 1-0

[Event "*** Titled Tuesday Blitz"]
[Site "Chess.com"]
[Date "2020.04.28"]
[Round "5"]
[White "Winehouse83"]
[Black "godsgonnacutudown"]
[Result "1-0"]
[WhiteElo "2531"]
[BlackElo "2357"]
[TimeControl "180+1"]
[EndTime "10:56:22 PDT"]
[Termination "Winehouse83 won by resignation"]

1. d4 {[%clk 0:03:00.9]} 1... Nf6 {[%clk 0:02:57.2]} 2. c4 {[%clk 0:03:01.4]}
2... e6 {[%clk 0:02:57.5]} 3. Nc3 {[%clk 0:03:01.7]} 3... Bb4 {[%clk 0:02:57.8]}
4. Qc2 {[%clk 0:03:02.2]} 4... d5 {[%clk 0:02:58.4]} 5. cxd5 {[%clk 0:03:02.5]}
5... exd5 {[%clk 0:02:58.9]} 6. Bg5 {[%clk 0:02:58.6]} 6... h6 {[%clk 0:02:59]}
7. Bh4 {[%clk 0:02:57.7]} 7... g5 {[%clk 0:02:59.6]} 8. Bg3 {[%clk 0:02:57.3]}
8... Ne4 {[%clk 0:03:00.2]} 9. e3 {[%clk 0:02:48.8]} 9... h5 {[%clk 0:02:52.8]}
10. f3 {[%clk 0:02:29.3]} 10... Nxg3 {[%clk 0:02:29.3]} 11. hxg3 {[%clk
0:02:30.2]} 11... Nc6 {[%clk 0:02:29.9]} 12. O-O-O {[%clk 0:02:17.6]} 12... Be6
{[%clk 0:02:30]} 13. Bb5 {[%clk 0:02:07.5]} 13... Ke7 {[%clk 0:02:27.2]} 14.
Nge2 {[%clk 0:01:59.2]} 14... Bd6 {[%clk 0:02:24.4]} 15. Bxc6 {[%clk 0:01:53.6]}
15... bxc6 {[%clk 0:02:24.3]} 16. e4 {[%clk 0:01:53.7]} 16... f6 {[%clk
0:02:17.9]} 17. exd5 {[%clk 0:01:29.8]} 17... cxd5 {[%clk 0:02:17]} 18. f4
{[%clk 0:01:30.1]} 18... c6 {[%clk 0:02:07.8]} 19. fxg5 {[%clk 0:01:26.6]} 19...
fxg5 {[%clk 0:02:08.2]} 20. Qg6 {[%clk 0:01:22.1]} 20... Qg8 {[%clk 0:01:44]}
21. Qd3 {[%clk 0:01:16.4]} 21... Kd7 {[%clk 0:01:44.3]} 22. Rhf1 {[%clk
0:01:10.2]} 22... Qh7 {[%clk 0:01:43.3]} 23. Qa6 {[%clk 0:00:57.8]} 23... Rhc8
{[%clk 0:01:28.5]} 24. Qb7+ {[%clk 0:00:54.3]} 24... Bc7 {[%clk 0:01:28.7]} 25.
Na4 {[%clk 0:00:53]} 25... Rcb8 {[%clk 0:01:28.2]} 26. Nc5+ {[%clk 0:00:51.9]}
26... Kd6 {[%clk 0:01:27.7]} 27. Qa6 {[%clk 0:00:51.4]} 27... Bf5 {[%clk
0:01:25.5]} 28. Qa3 {[%clk 0:00:47.2]} 28... Rf8 {[%clk 0:01:23.6]} 29. Nc3
{[%clk 0:00:32.3]} 29... Bb6 {[%clk 0:01:14.1]} 30. Na6+ {[%clk 0:00:28.3]}
30... Kd7 {[%clk 0:01:13.9]} 31. Na4 {[%clk 0:00:28.9]} 31... Rae8 {[%clk
0:01:14.2]} 32. N4c5+ {[%clk 0:00:28]} 32... Kc8 {[%clk 0:01:12.8]} 33. Qa4
{[%clk 0:00:27.9]} 33... Rf6 {[%clk 0:01:00.7]} 34. Rfe1 {[%clk 0:00:27]} 34...
Ref8 {[%clk 0:01:01.1]} 35. Nb4 {[%clk 0:00:24.4]} 35... Qc7 {[%clk 0:01:00.5]}
36. Re3 {[%clk 0:00:19.1]} 36... a5 {[%clk 0:00:59.2]} 37. Nbd3 {[%clk
0:00:18.2]} 37... Bg4 {[%clk 0:00:47.7]} 38. Rde1 {[%clk 0:00:17.3]} 38... Rf1
{[%clk 0:00:48.1]} 39. Ne5 {[%clk 0:00:16.7]} 39... Bxc5 {[%clk 0:00:46.2]} 40.
dxc5 {[%clk 0:00:15.8]} 40... Rxe1+ {[%clk 0:00:46.7]} 41. Rxe1 {[%clk
0:00:14.9]} 41... h4 {[%clk 0:00:31.5]} 42. Nxc6 {[%clk 0:00:13.2]} 42... Bd7
{[%clk 0:00:23.9]} 43. Ne7+ {[%clk 0:00:13]} 43... Kb7 {[%clk 0:00:17.3]} 44.
Qb3+ {[%clk 0:00:12.9]} 44... Ka7 {[%clk 0:00:17]} 45. Qb6+ {[%clk 0:00:13.1]}
45... Qxb6 {[%clk 0:00:17]} 46. cxb6+ {[%clk 0:00:14]} 46... Kxb6 {[%clk
0:00:17.5]} 47. gxh4 {[%clk 0:00:14.5]} 47... gxh4 {[%clk 0:00:17.3]} 48. Nxd5+
{[%clk 0:00:15.1]} 48... Kc6 {[%clk 0:00:17.2]} 49. Nc3 {[%clk 0:00:15.2]} 49...
h3 {[%clk 0:00:15.1]} 50. gxh3 {[%clk 0:00:14.9]} 50... Bxh3 {[%clk 0:00:15.6]}
51. Re2 {[%clk 0:00:13]} 51... Rf1+ {[%clk 0:00:14.7]} 52. Kd2 {[%clk
0:00:12.7]} 52... Bg4 {[%clk 0:00:14]} 53. Rg2 {[%clk 0:00:12.8]} 53... Rh1
{[%clk 0:00:13.3]} 54. Rxg4 {[%clk 0:00:11.8]} 1-0